[Event "Early-Titled-Tuesday-Blitz-May-07-2024"]
[Site "Chess.com"]
[Date "2024.05.07"]
[Round "5"]
[White "Darko-Dimitrijevic"]
[Black "Zheenbekov86"]
[Result "0-1"]
[WhiteElo "2247"]
[BlackElo "2421"]
[TimeControl "180+1"]
[EndTime "8:58:24 PDT"]
[Termination "Zheenbekov86 won by checkmate"]

1. c4 {[%clk 0:03:00.9]} 1... Nf6 {[%clk 0:02:58.5]} 2. b3 {[%clk 0:02:59.4]}
2... c6 {[%clk 0:02:57.2]} 3. Bb2 {[%clk 0:02:59.2]} 3... d5 {[%clk 0:02:57.5]}
4. g3 {[%clk 0:02:58.4]} 4... g6 {[%clk 0:02:57.4]} 5. Bg2 {[%clk 0:02:57.1]}
5... Bg7 {[%clk 0:02:57.4]} 6. d3 {[%clk 0:02:56.7]} 6... O-O {[%clk 0:02:57.3]}
7. Nd2 {[%clk 0:02:55.9]} 7... d4 {[%clk 0:02:57.3]} 8. Ngf3 {[%clk 0:02:48.1]}
8... c5 {[%clk 0:02:57.2]} 9. b4 {[%clk 0:02:43.5]} 9... cxb4 {[%clk 0:02:55.1]}
10. Bxd4 {[%clk 0:02:42.5]} 10... Nc6 {[%clk 0:02:54.7]} 11. Bb2 {[%clk
0:02:41.4]} 11... Re8 {[%clk 0:02:54.6]} 12. O-O {[%clk 0:02:40.5]} 12... e5
{[%clk 0:02:53.7]} 13. Qc2 {[%clk 0:02:34.4]} 13... h5 {[%clk 0:02:39.9]} 14.
Rfe1 {[%clk 0:02:33.1]} 14... Bf5 {[%clk 0:02:38.2]} 15. e4 {[%clk 0:02:23.8]}
15... Bg4 {[%clk 0:02:36.6]} 16. h3 {[%clk 0:02:22.7]} 16... Bxf3 {[%clk
0:02:35]} 17. Nxf3 {[%clk 0:02:21]} 17... Nd4 {[%clk 0:02:35]} 18. Nxd4 {[%clk
0:02:19.8]} 18... exd4 {[%clk 0:02:35]} 19. e5 {[%clk 0:02:14.1]} 19... Nd7
{[%clk 0:02:34.9]} 20. Bxd4 {[%clk 0:01:56.5]} 20... Nxe5 {[%clk 0:02:23.6]} 21.
Bxe5 {[%clk 0:01:42.2]} 21... Bxe5 {[%clk 0:02:22.8]} 22. Rab1 {[%clk
0:01:42.3]} 22... Bc3 {[%clk 0:01:38.4]} 23. Rxe8+ {[%clk 0:01:40.4]} 23... Qxe8
{[%clk 0:01:38.4]} 24. Bxb7 {[%clk 0:01:40]} 24... Rd8 {[%clk 0:01:38.3]} 25.
Be4 {[%clk 0:01:37.9]} 25... h4 {[%clk 0:01:22.7]} 26. g4 {[%clk 0:01:32]} 26...
Qe5 {[%clk 0:01:21.8]} 27. Qe2 {[%clk 0:01:13.2]} 27... Bd4 {[%clk 0:01:01]} 28.
Rxb4 {[%clk 0:01:01.1]} 28... Qg3+ {[%clk 0:00:57.7]} 29. Bg2 {[%clk 0:00:59.6]}
29... Rd6 {[%clk 0:00:40.2]} 30. Rb8+ {[%clk 0:00:55.9]} 30... Kg7 {[%clk
0:00:38.9]} 31. Rb7 {[%clk 0:00:53.8]} 31... Rf6 {[%clk 0:00:36.9]} 32. Kh1
{[%clk 0:00:32.3]} 32... Rxf2 {[%clk 0:00:35.8]} 33. Qe4 {[%clk 0:00:32]} 33...
Rf1+ {[%clk 0:00:34.1]} 34. Bxf1 {[%clk 0:00:31]} 34... Qg1# {[%clk 0:00:33.9]}
0-1

[Event "Early-Titled-Tuesday-Blitz-May-07-2024"]
[Site "Chess.com"]
[Date "2024.05.07"]
[Round "5"]
[White "Payyappat"]
[Black "Caroexpert"]
[Result "0-1"]
[WhiteElo "2500"]
[BlackElo "2669"]
[TimeControl "180+1"]
[EndTime "8:58:25 PDT"]
[Termination "Caroexpert won by resignation"]

1. e4 {[%clk 0:03:00.9]} 1... c6 {[%clk 0:02:58.1]} 2. d4 {[%clk 0:03:00.4]}
2... d5 {[%clk 0:02:58.1]} 3. Nc3 {[%clk 0:03:00.6]} 3... dxe4 {[%clk
0:02:58.1]} 4. Nxe4 {[%clk 0:03:01.5]} 4... Nf6 {[%clk 0:02:59]} 5. Nxf6+ {[%clk
0:03:00.2]} 5... exf6 {[%clk 0:02:59.9]} 6. Bc4 {[%clk 0:03:00.9]} 6... Bd6
{[%clk 0:03:00.5]} 7. Qe2+ {[%clk 0:03:00.4]} 7... Be7 {[%clk 0:03:00.6]} 8. Nf3
{[%clk 0:03:00.2]} 8... O-O {[%clk 0:03:00.5]} 9. O-O {[%clk 0:03:01.1]} 9...
Bd6 {[%clk 0:03:01.1]} 10. Re1 {[%clk 0:03:01.1]} 10... Na6 {[%clk 0:02:57.4]}
11. c3 {[%clk 0:02:57.8]} 11... Nc7 {[%clk 0:02:57.4]} 12. Be3 {[%clk
0:02:56.8]} 12... Be6 {[%clk 0:02:51.1]} 13. Bd3 {[%clk 0:02:56.3]} 13... Re8
{[%clk 0:02:39.8]} 14. Nh4 {[%clk 0:02:51.9]} 14... g6 {[%clk 0:02:39.4]} 15.
Qf3 {[%clk 0:02:48.8]} 15... f5 {[%clk 0:02:37]} 16. g3 {[%clk 0:02:35.7]} 16...
Bd5 {[%clk 0:02:33.8]} 17. Qd1 {[%clk 0:02:31.9]} 17... f4 {[%clk 0:02:29.1]}
18. Bd2 {[%clk 0:02:30.5]} 18... b5 {[%clk 0:02:19.7]} 19. Qg4 {[%clk
0:02:24.2]} 19... h5 {[%clk 0:02:11.6]} 20. Qh3 {[%clk 0:02:22.8]} 20... Ne6
{[%clk 0:02:03.6]} 21. Nxg6 {[%clk 0:02:17.1]} 21... fxg6 {[%clk 0:02:00.8]} 22.
Bxg6 {[%clk 0:02:15.7]} 22... Ng5 {[%clk 0:01:40.9]} 23. Rxe8+ {[%clk
0:02:08.4]} 23... Qxe8 {[%clk 0:01:40.2]} 24. Qxh5 {[%clk 0:02:08.5]} 24... Nf3+
{[%clk 0:01:35.4]} 25. Qxf3 {[%clk 0:02:07.6]} 25... Bxf3 {[%clk 0:01:34.9]} 26.
Bxe8 {[%clk 0:02:05.6]} 26... Rxe8 {[%clk 0:01:35.8]} 27. Bxf4 {[%clk
0:02:03.1]} 27... Bxf4 {[%clk 0:01:35.3]} 28. gxf4 {[%clk 0:02:04]} 28... Kf7
{[%clk 0:01:34.2]} 29. Kf1 {[%clk 0:02:03.1]} 29... Re2 {[%clk 0:01:30.9]} 30.
a4 {[%clk 0:01:55]} 30... a6 {[%clk 0:01:23.7]} 31. axb5 {[%clk 0:01:54.5]}
31... axb5 {[%clk 0:01:24.6]} 32. Rb1 {[%clk 0:00:50.3]} 32... Kf6 {[%clk
0:01:24.1]} 33. b3 {[%clk 0:00:38.7]} 33... Kf5 {[%clk 0:01:23.5]} 34. c4 {[%clk
0:00:37.6]} 34... b4 {[%clk 0:01:22.2]} 35. d5 {[%clk 0:00:34.1]} 35... cxd5
{[%clk 0:01:22.1]} 36. cxd5 {[%clk 0:00:35]} 36... Rd2 {[%clk 0:01:22.4]} 37.
Re1 {[%clk 0:00:31.5]} 37... Kxf4 {[%clk 0:01:21.9]} 38. h4 {[%clk 0:00:24.8]}
38... Rxd5 {[%clk 0:01:21]} 39. Rc1 {[%clk 0:00:21.6]} 39... Rd1+ {[%clk
0:01:13.9]} 40. Rxd1 {[%clk 0:00:21.2]} 40... Bxd1 {[%clk 0:01:14.8]} 41. Ke1
{[%clk 0:00:21.6]} 41... Bxb3 {[%clk 0:01:15.1]} 42. Kd2 {[%clk 0:00:22.1]}
42... Bf7 {[%clk 0:01:12.1]} 43. Kd3 {[%clk 0:00:17.2]} 43... Kg4 {[%clk
0:01:09.9]} 0-1

[Event "Early-Titled-Tuesday-Blitz-May-07-2024"]
[Site "Chess.com"]
[Date "2024.05.07"]
[Round "5"]
[White "ilushka"]
[Black "ferdipy"]
[Result "1-0"]
[WhiteElo "2524"]
[BlackElo "2334"]
[TimeControl "180+1"]
[EndTime "8:58:28 PDT"]
[Termination "ilushka won by resignation"]

1. Nf3 {[%clk 0:03:00.9]} 1... e6 {[%clk 0:03:00.2]} 2. g3 {[%clk 0:03:00.2]}
2... Nf6 {[%clk 0:03:00.7]} 3. Bg2 {[%clk 0:03:00.3]} 3... d5 {[%clk 0:03:01.3]}
4. d4 {[%clk 0:03:00.1]} 4... Be7 {[%clk 0:03:01.8]} 5. c4 {[%clk 0:02:59.5]}
5... O-O {[%clk 0:03:02.2]} 6. Qc2 {[%clk 0:03:00]} 6... c6 {[%clk 0:03:01]} 7.
O-O {[%clk 0:03:00.1]} 7... dxc4 {[%clk 0:03:00.4]} 8. Qxc4 {[%clk 0:02:59.2]}
8... b5 {[%clk 0:03:00.8]} 9. Qc2 {[%clk 0:02:58.6]} 9... Bb7 {[%clk 0:03:01]}
10. Rd1 {[%clk 0:02:56.5]} 10... Nbd7 {[%clk 0:02:59]} 11. Nc3 {[%clk
0:02:54.3]} 11... Qb6 {[%clk 0:02:55.9]} 12. e4 {[%clk 0:02:50.5]} 12... a6
{[%clk 0:02:53.4]} 13. h3 {[%clk 0:02:39.8]} 13... Rac8 {[%clk 0:02:53.3]} 14.
Be3 {[%clk 0:02:39.3]} 14... Qa5 {[%clk 0:02:40]} 15. a3 {[%clk 0:02:38.1]}
15... Rfd8 {[%clk 0:02:26.6]} 16. g4 {[%clk 0:02:27.6]} 16... Qc7 {[%clk
0:02:18.1]} 17. b4 {[%clk 0:02:16.3]} 17... Nb6 {[%clk 0:02:16.7]} 18. Nd2
{[%clk 0:02:12.3]} 18... h5 {[%clk 0:02:14]} 19. g5 {[%clk 0:02:11.8]} 19... Nh7
{[%clk 0:02:09]} 20. h4 {[%clk 0:02:09]} 20... f6 {[%clk 0:02:06.3]} 21. Qb3
{[%clk 0:02:06.8]} 21... Qd7 {[%clk 0:02:02]} 22. Bh3 {[%clk 0:02:05.1]} 22...
Nf8 {[%clk 0:01:48.4]} 23. gxf6 {[%clk 0:02:01.9]} 23... Bxf6 {[%clk 0:01:47.2]}
24. e5 {[%clk 0:01:57.4]} 24... Bxh4 {[%clk 0:01:46.1]} 25. Nde4 {[%clk
0:01:56.2]} 25... Nd5 {[%clk 0:01:40.5]} 26. Nd6 {[%clk 0:01:53.4]} 26... Ra8
{[%clk 0:01:39.9]} 27. Nce4 {[%clk 0:01:49.6]} 27... Bc8 {[%clk 0:01:31.1]} 28.
Kh1 {[%clk 0:01:39]} 28... Qe7 {[%clk 0:01:22]} 29. Rg1 {[%clk 0:01:36.2]} 29...
Kh8 {[%clk 0:01:15.3]} 30. Bg5 {[%clk 0:01:31.4]} 30... Bxg5 {[%clk 0:01:12.9]}
31. Rxg5 {[%clk 0:01:32.3]} 31... Nf4 {[%clk 0:01:03.3]} 32. Qf3 {[%clk
0:01:26.9]} 32... Nxh3 {[%clk 0:00:41.3]} 33. Qxh3 {[%clk 0:01:27.8]} 33... g6
{[%clk 0:00:40.2]} 34. Rag1 {[%clk 0:01:21.8]} 34... Qh7 {[%clk 0:00:30]} 35.
Nf6 {[%clk 0:01:17.7]} 35... Qe7 {[%clk 0:00:15.8]} 36. Rxg6 {[%clk 0:00:56]}
36... Nxg6 {[%clk 0:00:14.5]} 37. Qxh5+ {[%clk 0:00:55.3]} 1-0

[Event "Early-Titled-Tuesday-Blitz-May-07-2024"]
[Site "Chess.com"]
[Date "2024.05.07"]
[Round "5"]
[White "Chessdude1987"]
[Black "campochess"]
[Result "1-0"]
[WhiteElo "2369"]
[BlackElo "2154"]
[TimeControl "180+1"]
[EndTime "8:58:32 PDT"]
[Termination "Chessdude1987 won by resignation"]

1. e4 {[%clk 0:03:00.9]} 1... c5 {[%clk 0:03:00]} 2. Nf3 {[%clk 0:03:01.2]} 2...
Nc6 {[%clk 0:03:00.1]} 3. Bb5 {[%clk 0:03:01]} 3... e5 {[%clk 0:02:59.3]} 4. O-O
{[%clk 0:03:00]} 4... Bd6 {[%clk 0:02:59.3]} 5. Na3 {[%clk 0:02:57.9]} 5... a6
{[%clk 0:02:56.6]} 6. Bxc6 {[%clk 0:02:57.7]} 6... dxc6 {[%clk 0:02:56.3]} 7.
Nc4 {[%clk 0:02:57.3]} 7... Qe7 {[%clk 0:02:55.3]} 8. Nxd6+ {[%clk 0:02:55.5]}
8... Qxd6 {[%clk 0:02:54.6]} 9. b3 {[%clk 0:02:55.3]} 9... Bg4 {[%clk
0:02:53.6]} 10. Bb2 {[%clk 0:02:51.2]} 10... f6 {[%clk 0:02:53.3]} 11. h3 {[%clk
0:02:49.5]} 11... Bh5 {[%clk 0:02:49.8]} 12. g4 {[%clk 0:02:36.9]} 12... Bf7
{[%clk 0:02:45.9]} 13. b4 {[%clk 0:02:32.7]} 13... Rd8 {[%clk 0:02:37.4]} 14.
bxc5 {[%clk 0:02:30.6]} 14... Qxc5 {[%clk 0:02:36.6]} 15. c3 {[%clk 0:02:21.5]}
15... Qc4 {[%clk 0:02:32.7]} 16. Re1 {[%clk 0:02:20.1]} 16... h5 {[%clk
0:02:27.1]} 17. g5 {[%clk 0:02:20.1]} 17... h4 {[%clk 0:02:26.7]} 18. d4 {[%clk
0:02:18.4]} 18... Bh5 {[%clk 0:02:15.9]} 19. Re3 {[%clk 0:02:17.5]} 19... fxg5
{[%clk 0:02:12.8]} 20. Nxe5 {[%clk 0:02:10.8]} 20... Bxd1 {[%clk 0:02:07.4]} 21.
Nxc4 {[%clk 0:02:10.8]} 21... Bh5 {[%clk 0:02:05.3]} 22. e5 {[%clk 0:02:08.4]}
22... Kd7 {[%clk 0:01:57.1]} 23. e6+ {[%clk 0:01:55.6]} 23... Kc7 {[%clk
0:01:53.1]} 24. e7 {[%clk 0:01:52.2]} 24... Re8 {[%clk 0:01:53.1]} 25. Ba3
{[%clk 0:01:51.3]} 25... b5 {[%clk 0:01:49.2]} 26. Nd6 {[%clk 0:01:34.3]} 26...
Rxe7 {[%clk 0:01:29.4]} 27. Nxb5+ {[%clk 0:01:34.4]} 27... axb5 {[%clk
0:01:29.2]} 28. Bxe7 {[%clk 0:01:34.6]} 28... g4 {[%clk 0:01:27.7]} 29. Bxh4
{[%clk 0:01:24.2]} 29... Nh6 {[%clk 0:01:23.3]} 30. Bg3+ {[%clk 0:01:06.9]}
30... Kb6 {[%clk 0:01:21.4]} 31. h4 {[%clk 0:01:03.4]} 31... Nf5 {[%clk
0:01:21]} 32. Re5 {[%clk 0:01:01.7]} 32... Bg6 {[%clk 0:01:21.1]} 33. a4 {[%clk
0:00:59.4]} 33... bxa4 {[%clk 0:01:19.1]} 34. Rxa4 {[%clk 0:00:58.5]} 34... Nxh4
{[%clk 0:01:18.3]} 35. Rb4+ {[%clk 0:00:58.1]} 35... Kc7 {[%clk 0:01:15.9]} 36.
Rh5+ {[%clk 0:00:55.7]} 36... Kd7 {[%clk 0:01:14.3]} 37. Rxh8 {[%clk 0:00:55.5]}
37... Nf3+ {[%clk 0:01:12.5]} 38. Kg2 {[%clk 0:00:47]} 38... Ne1+ {[%clk
0:01:10.7]} 39. Kf1 {[%clk 0:00:45.5]} 39... Nd3 {[%clk 0:01:10.6]} 40. Rb7+
{[%clk 0:00:44.3]} 40... Ke6 {[%clk 0:01:09.6]} 41. Rc7 {[%clk 0:00:37.2]} 41...
Be4 {[%clk 0:01:07.9]} 42. Ke2 {[%clk 0:00:35.5]} 42... g5 {[%clk 0:01:06.1]}
43. Rh6+ {[%clk 0:00:34.2]} 43... Kd5 {[%clk 0:01:05.9]} 44. Rhxc6 {[%clk
0:00:25.9]} 44... Nc1+ {[%clk 0:01:03.1]} 45. Kd1 {[%clk 0:00:25.1]} 45... Nb3
{[%clk 0:01:01.8]} 46. Rc5+ {[%clk 0:00:24]} 46... Nxc5 {[%clk 0:01:00.6]} 47.
Rxc5+ {[%clk 0:00:23.9]} 47... Ke6 {[%clk 0:00:58.3]} 48. Re5+ {[%clk
0:00:23.8]} 1-0

[Event "Early-Titled-Tuesday-Blitz-May-07-2024"]
[Site "Chess.com"]
[Date "2024.05.07"]
[Round "5"]
[White "Lily_Schirmbeck"]
[Black "Kostina_Nadezhda"]
[Result "0-1"]
[WhiteElo "1659"]
[BlackElo "2283"]
[TimeControl "180+1"]
[EndTime "8:58:37 PDT"]
[Termination "Kostina_Nadezhda won by checkmate"]

1. c4 {[%clk 0:02:55.7]} 1... e5 {[%clk 0:02:59.7]} 2. Nc3 {[%clk 0:02:54.7]}
2... Nc6 {[%clk 0:02:59.6]} 3. g3 {[%clk 0:02:54.8]} 3... Nf6 {[%clk 0:02:58.5]}
4. Bg2 {[%clk 0:02:49.6]} 4... Bb4 {[%clk 0:02:50.5]} 5. d3 {[%clk 0:02:47.4]}
5... O-O {[%clk 0:02:49]} 6. Nf3 {[%clk 0:02:46]} 6... d6 {[%clk 0:02:48.7]} 7.
O-O {[%clk 0:02:45.1]} 7... Be6 {[%clk 0:02:40.1]} 8. Bd2 {[%clk 0:02:42.4]}
8... h6 {[%clk 0:02:33]} 9. a3 {[%clk 0:02:40.4]} 9... Bxc3 {[%clk 0:02:31.1]}
10. Bxc3 {[%clk 0:02:37.3]} 10... e4 {[%clk 0:02:23.5]} 11. Nd4 {[%clk
0:02:21.8]} 11... Nxd4 {[%clk 0:02:17.3]} 12. Bxd4 {[%clk 0:02:21]} 12... exd3
{[%clk 0:02:16.1]} 13. Qxd3 {[%clk 0:02:20.3]} 13... c6 {[%clk 0:02:13.6]} 14.
Qc3 {[%clk 0:02:15.7]} 14... Qe7 {[%clk 0:02:08.9]} 15. Rfd1 {[%clk 0:02:03]}
15... Rfe8 {[%clk 0:01:54.2]} 16. Bxf6 {[%clk 0:01:47.5]} 16... Qxf6 {[%clk
0:01:55.1]} 17. Qxf6 {[%clk 0:01:47.7]} 17... gxf6 {[%clk 0:01:55.1]} 18. Rxd6
{[%clk 0:01:47.1]} 18... Bxc4 {[%clk 0:01:55.3]} 19. e3 {[%clk 0:01:42.2]} 19...
Be6 {[%clk 0:01:45.6]} 20. Rad1 {[%clk 0:01:39]} 20... Kf8 {[%clk 0:01:45]} 21.
b4 {[%clk 0:01:38.3]} 21... Ke7 {[%clk 0:01:45.3]} 22. b5 {[%clk 0:01:24.8]}
22... cxb5 {[%clk 0:01:46.2]} 23. Bxb7 {[%clk 0:01:24.3]} 23... Rad8 {[%clk
0:01:43.8]} 24. Rxd8 {[%clk 0:00:56.9]} 24... Rxd8 {[%clk 0:01:44.7]} 25. Rxd8
{[%clk 0:00:56.4]} 25... Kxd8 {[%clk 0:01:45.6]} 26. Bc6 {[%clk 0:00:56.4]}
26... Bc4 {[%clk 0:01:43.6]} 27. Kg2 {[%clk 0:00:50.4]} 27... Kc7 {[%clk
0:01:44]} 28. Be4 {[%clk 0:00:49.3]} 28... Bb3 {[%clk 0:01:31.5]} 29. Bd3 {[%clk
0:00:47.5]} 29... Kb6 {[%clk 0:01:31.6]} 30. Kf1 {[%clk 0:00:47.3]} 30... Ka5
{[%clk 0:01:02.3]} 31. Ke2 {[%clk 0:00:43.4]} 31... Ka4 {[%clk 0:01:02.8]} 32.
Kd2 {[%clk 0:00:41.4]} 32... a6 {[%clk 0:01:03.2]} 33. Bc2 {[%clk 0:00:35.6]}
33... Bxc2 {[%clk 0:01:02.3]} 34. Kxc2 {[%clk 0:00:36.2]} 34... Kxa3 {[%clk
0:01:02.9]} 35. Kb1 {[%clk 0:00:35.9]} 35... b4 {[%clk 0:01:02.7]} 36. f4 {[%clk
0:00:33.3]} 36... b3 {[%clk 0:01:02.3]} 37. e4 {[%clk 0:00:33.4]} 37... b2
{[%clk 0:01:02.5]} 38. g4 {[%clk 0:00:30.8]} 38... Kb3 {[%clk 0:00:55.5]} 39. e5
{[%clk 0:00:28.4]} 39... a5 {[%clk 0:00:53.4]} 40. e6 {[%clk 0:00:27.7]} 40...
fxe6 {[%clk 0:00:52.4]} 41. g5 {[%clk 0:00:27.3]} 41... hxg5 {[%clk 0:00:50.2]}
42. f5 {[%clk 0:00:26.8]} 42... a4 {[%clk 0:00:47.2]} 43. fxe6 {[%clk
0:00:23.8]} 43... a3 {[%clk 0:00:46.5]} 44. e7 {[%clk 0:00:24.1]} 44... a2#
{[%clk 0:00:47.4]} 0-1

[Event "Early-Titled-Tuesday-Blitz-May-07-2024"]
[Site "Chess.com"]
[Date "2024.05.07"]
[Round "5"]
[White "2346PL"]
[Black "AnaKuchava"]
[Result "1-0"]
[WhiteElo "2545"]
[BlackElo "2210"]
[TimeControl "180+1"]
[EndTime "8:58:39 PDT"]
[Termination "2346PL won by resignation"]

1. d4 {[%clk 0:03:00.9]} 1... d5 {[%clk 0:02:57.4]} 2. Nf3 {[%clk 0:03:00.5]}
2... Nf6 {[%clk 0:02:51.5]} 3. c3 {[%clk 0:02:59.8]} 3... Bg4 {[%clk 0:02:47]}
4. Qb3 {[%clk 0:02:57.3]} 4... Qc8 {[%clk 0:02:42.3]} 5. Bf4 {[%clk 0:02:54.8]}
5... e6 {[%clk 0:02:37.8]} 6. Nbd2 {[%clk 0:02:54.7]} 6... Bd6 {[%clk 0:02:32]}
7. e3 {[%clk 0:02:51.4]} 7... O-O {[%clk 0:02:29.4]} 8. Bd3 {[%clk 0:02:50.9]}
8... Bxf4 {[%clk 0:02:22.5]} 9. exf4 {[%clk 0:02:50.8]} 9... c5 {[%clk
0:02:23.2]} 10. dxc5 {[%clk 0:02:49.2]} 10... Nbd7 {[%clk 0:02:14.3]} 11. O-O
{[%clk 0:02:24.2]} 11... Nxc5 {[%clk 0:02:08.2]} 12. Qc2 {[%clk 0:02:24.7]}
12... Nxd3 {[%clk 0:02:07]} 13. Qxd3 {[%clk 0:02:25.6]} 13... Qc7 {[%clk
0:01:52]} 14. Ne5 {[%clk 0:02:24]} 14... Bf5 {[%clk 0:01:51.9]} 15. Qe2 {[%clk
0:02:22.3]} 15... Ne4 {[%clk 0:01:45]} 16. Nxe4 {[%clk 0:02:19.9]} 16... Bxe4
{[%clk 0:01:45.9]} 17. f3 {[%clk 0:02:16.9]} 17... Bg6 {[%clk 0:01:39.5]} 18. g3
{[%clk 0:02:07.4]} 18... Rfe8 {[%clk 0:01:34.7]} 19. Rfd1 {[%clk 0:02:02.9]}
19... f6 {[%clk 0:01:32.5]} 20. Nxg6 {[%clk 0:02:01.3]} 20... hxg6 {[%clk
0:01:33.4]} 21. Qd3 {[%clk 0:01:57.2]} 21... Qc5+ {[%clk 0:01:23.8]} 22. Kh1
{[%clk 0:01:56]} 22... Kf7 {[%clk 0:01:20.6]} 23. Qd4 {[%clk 0:01:50]} 23...
Rac8 {[%clk 0:01:18.3]} 24. Qxc5 {[%clk 0:01:47]} 24... Rxc5 {[%clk 0:01:19.2]}
25. Rd4 {[%clk 0:01:47.7]} 25... b5 {[%clk 0:01:15.5]} 26. a4 {[%clk 0:01:45.6]}
26... e5 {[%clk 0:01:01.1]} 27. fxe5 {[%clk 0:01:42.6]} 27... fxe5 {[%clk
0:01:02]} 28. Rb4 {[%clk 0:01:42.1]} 28... bxa4 {[%clk 0:00:57.1]} 29. Rbxa4
{[%clk 0:01:42.2]} 29... Rb5 {[%clk 0:00:15.4]} 30. Rxa7+ {[%clk 0:01:39.8]}
30... Kf6 {[%clk 0:00:15.3]} 31. R1a6+ {[%clk 0:01:35.3]} 31... Re6 {[%clk
0:00:15.8]} 32. b4 {[%clk 0:01:23.2]} 32... Rxa6 {[%clk 0:00:12]} 33. Rxa6+
{[%clk 0:01:24.1]} 33... Kf5 {[%clk 0:00:07.1]} 34. Rd6 {[%clk 0:01:13.3]} 34...
d4 {[%clk 0:00:05.7]} 35. cxd4 {[%clk 0:01:13.1]} 35... Rxb4 {[%clk 0:00:06.4]}
36. dxe5 {[%clk 0:01:11.8]} 36... Kxe5 {[%clk 0:00:04.3]} 37. Rxg6 {[%clk
0:01:11.1]} 37... Rb7 {[%clk 0:00:01.2]} 38. Kg2 {[%clk 0:01:10.1]} 38... Rf7
{[%clk 0:00:01.5]} 39. h4 {[%clk 0:01:07.7]} 39... Kd5 {[%clk 0:00:02.4]} 40. h5
{[%clk 0:01:05.6]} 40... Ke5 {[%clk 0:00:03.3]} 41. f4+ {[%clk 0:01:01.7]} 41...
Kd5 {[%clk 0:00:02.9]} 42. Kf3 {[%clk 0:01:01.8]} 42... Ra7 {[%clk 0:00:03.1]}
43. Kg4 {[%clk 0:01:00.5]} 1-0

[Event "Early-Titled-Tuesday-Blitz-May-07-2024"]
[Site "Chess.com"]
[Date "2024.05.07"]
[Round "5"]
[White "Jospem"]
[Black "Shota_Azaladze"]
[Result "1-0"]
[WhiteElo "3053"]
[BlackElo "2722"]
[TimeControl "180+1"]
[EndTime "8:58:40 PDT"]
[Termination "Jospem won by resignation"]

1. e4 {[%clk 0:03:00.9]} 1... g6 {[%clk 0:02:59.9]} 2. d4 {[%clk 0:03:00.9]}
2... Bg7 {[%clk 0:03:00.8]} 3. c3 {[%clk 0:03:01.5]} 3... d6 {[%clk 0:02:59.2]}
4. Bd3 {[%clk 0:03:02.1]} 4... e5 {[%clk 0:02:59.4]} 5. Nf3 {[%clk 0:03:02.8]}
5... Nc6 {[%clk 0:02:59.3]} 6. O-O {[%clk 0:03:03.6]} 6... Nf6 {[%clk
0:02:58.1]} 7. h3 {[%clk 0:03:03.4]} 7... O-O {[%clk 0:02:58]} 8. Re1 {[%clk
0:03:04.2]} 8... a6 {[%clk 0:02:54]} 9. Nbd2 {[%clk 0:02:59.1]} 9... exd4 {[%clk
0:02:52.9]} 10. cxd4 {[%clk 0:03:00]} 10... Nd7 {[%clk 0:02:52.9]} 11. Nb3
{[%clk 0:03:00]} 11... Nb4 {[%clk 0:02:53]} 12. Bb1 {[%clk 0:03:00]} 12... c5
{[%clk 0:02:53.6]} 13. Be3 {[%clk 0:03:00.4]} 13... b5 {[%clk 0:02:43.7]} 14.
Qd2 {[%clk 0:02:56.4]} 14... Nc6 {[%clk 0:02:31.9]} 15. Bh6 {[%clk 0:02:46.3]}
15... Bb7 {[%clk 0:02:19.9]} 16. Bxg7 {[%clk 0:02:46.3]} 16... Kxg7 {[%clk
0:02:20.8]} 17. dxc5 {[%clk 0:02:40]} 17... dxc5 {[%clk 0:02:20.3]} 18. Qc3+
{[%clk 0:02:37.5]} 18... Kg8 {[%clk 0:02:02]} 19. Nxc5 {[%clk 0:02:34.5]} 19...
Nxc5 {[%clk 0:02:02.1]} 20. Qxc5 {[%clk 0:02:35.4]} 20... Rc8 {[%clk 0:02:02.5]}
21. Qe3 {[%clk 0:02:31.2]} 21... Re8 {[%clk 0:01:58.7]} 22. Bd3 {[%clk
0:02:18.1]} 22... Nb4 {[%clk 0:01:56.9]} 23. Rad1 {[%clk 0:02:18.3]} 23... Qf6
{[%clk 0:01:53.2]} 24. e5 {[%clk 0:02:06]} 24... Qg7 {[%clk 0:01:50.2]} 25. Be4
{[%clk 0:01:53.7]} 25... Nc2 {[%clk 0:01:41.5]} 26. Bxc2 {[%clk 0:01:53.8]}
26... Rxc2 {[%clk 0:01:42.4]} 27. Rd7 {[%clk 0:01:53.8]} 27... Bxf3 {[%clk
0:01:14.8]} 28. Qxf3 {[%clk 0:01:54.7]} 28... Qf8 {[%clk 0:01:09.8]} 29. Qb3
{[%clk 0:01:48.5]} 29... Rc5 {[%clk 0:01:05.6]} 30. e6 {[%clk 0:01:48.5]} 30...
fxe6 {[%clk 0:01:03.1]} 31. Rxe6 {[%clk 0:01:40.6]} 31... Rc4 {[%clk 0:00:57.8]}
32. Qe3 {[%clk 0:01:36]} 32... Rcc8 {[%clk 0:00:47.6]} 33. Rxe8 {[%clk
0:01:25.8]} 33... Rxe8 {[%clk 0:00:47.4]} 34. Qb3+ {[%clk 0:01:25.9]} 34... Kh8
{[%clk 0:00:47.8]} 35. Qc3+ {[%clk 0:01:26.4]} 35... Kg8 {[%clk 0:00:48]} 36.
Qd2 {[%clk 0:01:22.4]} 36... Qf5 {[%clk 0:00:46]} 37. f4 {[%clk 0:01:08.6]}
37... Qb1+ {[%clk 0:00:44.7]} 38. Kh2 {[%clk 0:01:08.3]} 38... Qe4 {[%clk
0:00:35.2]} 39. Ra7 {[%clk 0:00:47.5]} 39... h5 {[%clk 0:00:27.4]} 40. Qd6
{[%clk 0:00:42.1]} 40... Rf8 {[%clk 0:00:27.5]} 41. Rxa6 {[%clk 0:00:41.1]}
41... Kh7 {[%clk 0:00:26.1]} 42. Qxf8 {[%clk 0:00:38.5]} 1-0

[Event "Early-Titled-Tuesday-Blitz-May-07-2024"]
[Site "Chess.com"]
[Date "2024.05.07"]
[Round "5"]
[White "Navyblue1"]
[Black "jinxy2009"]
[Result "1-0"]
[WhiteElo "2248"]
[BlackElo "2278"]
[TimeControl "180+1"]
[EndTime "8:58:40 PDT"]
[Termination "Navyblue1 won by resignation"]

1. d4 {[%clk 0:02:49.9]} 1... Nf6 {[%clk 0:02:58.1]} 2. c4 {[%clk 0:02:50.3]}
2... g6 {[%clk 0:02:58.5]} 3. Nc3 {[%clk 0:02:49.2]} 3... d5 {[%clk 0:02:58.5]}
4. Nf3 {[%clk 0:02:46.8]} 4... Bg7 {[%clk 0:02:58.6]} 5. Qb3 {[%clk 0:02:46.5]}
5... dxc4 {[%clk 0:02:58.7]} 6. Qxc4 {[%clk 0:02:47.4]} 6... O-O {[%clk
0:02:59]} 7. Bf4 {[%clk 0:02:45.8]} 7... c6 {[%clk 0:02:56.8]} 8. e4 {[%clk
0:02:45.9]} 8... Bg4 {[%clk 0:02:48.8]} 9. Be2 {[%clk 0:02:43.1]} 9... Nbd7
{[%clk 0:02:45.2]} 10. O-O {[%clk 0:02:36.9]} 10... Rc8 {[%clk 0:02:40.4]} 11.
Qb3 {[%clk 0:02:31.9]} 11... c5 {[%clk 0:02:18]} 12. d5 {[%clk 0:02:14.8]} 12...
Nh5 {[%clk 0:02:04.2]} 13. Be3 {[%clk 0:02:04.6]} 13... b6 {[%clk 0:01:58.1]}
14. Rad1 {[%clk 0:01:44.4]} 14... f5 {[%clk 0:01:51.1]} 15. d6+ {[%clk
0:01:17.5]} 15... e6 {[%clk 0:01:17.4]} 16. Qxe6+ {[%clk 0:01:12.9]} 16... Kh8
{[%clk 0:01:17]} 17. h3 {[%clk 0:00:42.4]} 17... Re8 {[%clk 0:00:45.9]} 18. Qc4
{[%clk 0:00:37.4]} 18... Bxf3 {[%clk 0:00:44.3]} 19. Bxf3 {[%clk 0:00:35.5]}
19... Ne5 {[%clk 0:00:44.2]} 20. Qe2 {[%clk 0:00:31.8]} 20... Nxf3+ {[%clk
0:00:40.2]} 21. Qxf3 {[%clk 0:00:31.7]} 21... Bxc3 {[%clk 0:00:21.2]} 22. d7
{[%clk 0:00:27.8]} 22... fxe4 {[%clk 0:00:17.4]} 23. dxe8=Q+ {[%clk 0:00:26.3]}
23... Qxe8 {[%clk 0:00:17.3]} 24. Qg4 {[%clk 0:00:24]} 24... Be5 {[%clk
0:00:16.8]} 25. Kh1 {[%clk 0:00:16.1]} 25... Nf6 {[%clk 0:00:16.8]} 26. Qh4
{[%clk 0:00:15.3]} 26... Qe6 {[%clk 0:00:14.7]} 27. b3 {[%clk 0:00:14.7]} 27...
Bc7 {[%clk 0:00:14.1]} 28. Bg5 {[%clk 0:00:14.6]} 28... Qe5 {[%clk 0:00:13.6]}
29. Bxf6+ {[%clk 0:00:14.8]} 1-0